[Event "*** SCC Grand Prix: Titled Tuesday Blitz"]
[Site "Chess.com"]
[Date "2020.08.04"]
[Round "2"]
[White "LimaRR"]
[Black "Sanyura"]
[Result "0-1"]
[WhiteElo "2071"]
[BlackElo "2396"]
[TimeControl "180+1"]
[EndTime "13:57:55 PDT"]
[Termination "Sanyura won by resignation"]

1. e4 {[%clk 0:03:00.9]} 1... c5 {[%clk 0:03:00]} 2. Nf3 {[%clk 0:03:00.5]} 2...
e6 {[%clk 0:02:59.6]} 3. d4 {[%clk 0:03:00]} 3... cxd4 {[%clk 0:03:00.5]} 4.
Nxd4 {[%clk 0:03:00.3]} 4... Nf6 {[%clk 0:03:01.4]} 5. Nc3 {[%clk 0:03:00.6]}
5... Nc6 {[%clk 0:03:01.8]} 6. Nxc6 {[%clk 0:02:36.1]} 6... bxc6 {[%clk
0:03:02.7]} 7. Bd3 {[%clk 0:02:36]} 7... d5 {[%clk 0:03:01.8]} 8. exd5 {[%clk
0:02:36.1]} 8... exd5 {[%clk 0:03:01.4]} 9. O-O {[%clk 0:02:37]} 9... Be7 {[%clk
0:02:55.2]} 10. Qf3 {[%clk 0:02:33.6]} 10... O-O {[%clk 0:02:55]} 11. Bf4 {[%clk
0:02:32.5]} 11... Bg4 {[%clk 0:02:47.1]} 12. Qg3 {[%clk 0:02:30.6]} 12... Qd7
{[%clk 0:02:47.6]} 13. h3 {[%clk 0:02:29]} 13... Nh5 {[%clk 0:02:41.8]} 14. hxg4
{[%clk 0:01:59.8]} 14... Nxg3 {[%clk 0:02:41.1]} 0-1

[Event "*** SCC Grand Prix: Titled Tuesday Blitz"]
[Site "Chess.com"]
[Date "2020.08.04"]
[Round "2"]
[White "JonahWillow"]
[Black "Micki-taryan"]
[Result "0-1"]
[WhiteElo "2678"]
[BlackElo "3055"]
[TimeControl "180+1"]
[EndTime "13:58:13 PDT"]
[Termination "Micki-taryan won by resignation"]

1. e4 {[%clk 0:03:00.9]} 1... c5 {[%clk 0:02:58.8]} 2. Nf3 {[%clk 0:02:53.7]}
2... Nf6 {[%clk 0:02:58.8]} 3. d4 {[%clk 0:02:54.4]} 3... Nxe4 {[%clk
0:02:57.4]} 4. Bd3 {[%clk 0:02:20.6]} 4... d5 {[%clk 0:02:56.7]} 5. O-O {[%clk
0:02:17.2]} 5... Nc6 {[%clk 0:02:55.2]} 6. Re1 {[%clk 0:02:05.2]} 6... cxd4
{[%clk 0:02:52.7]} 7. Bxe4 {[%clk 0:02:00.5]} 7... dxe4 {[%clk 0:02:53.6]} 8.
Rxe4 {[%clk 0:02:01.4]} 8... Bf5 {[%clk 0:02:52.7]} 9. Rh4 {[%clk 0:01:50.2]}
9... e5 {[%clk 0:02:51.9]} 10. Bg5 {[%clk 0:01:37.7]} 10... f6 {[%clk 0:02:52]}
11. Bd2 {[%clk 0:01:26.9]} 11... g5 {[%clk 0:02:49.3]} 0-1

[Event "*** SCC Grand Prix: Titled Tuesday Blitz"]
[Site "Chess.com"]
[Date "2020.08.04"]
[Round "2"]
[White "aa175"]
[Black "Kaua18"]
[Result "1-0"]
[WhiteElo "2469"]
[BlackElo "2281"]
[TimeControl "180+1"]
[EndTime "13:59:11 PDT"]
[Termination "aa175 won by resignation"]

1. d4 {[%clk 0:03:00.9]} 1... Nf6 {[%clk 0:03:00.2]} 2. Nf3 {[%clk 0:03:01]}
2... b6 {[%clk 0:03:00.3]} 3. Bf4 {[%clk 0:03:01.4]} 3... Bb7 {[%clk 0:02:57.7]}
4. e3 {[%clk 0:03:01.9]} 4... e6 {[%clk 0:02:57.3]} 5. Nbd2 {[%clk 0:03:02.3]}
5... c5 {[%clk 0:02:56.3]} 6. Nc4 {[%clk 0:03:01.9]} 6... Ne4 {[%clk 0:02:55.6]}
7. Bd3 {[%clk 0:03:00]} 7... d5 {[%clk 0:02:52.2]} 8. Nce5 {[%clk 0:02:59.3]}
8... c4 {[%clk 0:02:45.9]} 9. Bxe4 {[%clk 0:02:55.2]} 9... dxe4 {[%clk
0:02:46.8]} 10. Ng5 {[%clk 0:02:56.1]} 10... f6 {[%clk 0:02:00.6]} 11. Ngf7
{[%clk 0:02:37.9]} 11... Qc7 {[%clk 0:00:50.4]} 12. Nxh8 {[%clk 0:02:27.7]}
12... fxe5 {[%clk 0:00:49.1]} 13. Bxe5 {[%clk 0:02:28.6]} 13... Bd6 {[%clk
0:00:49.3]} 14. Bxd6 {[%clk 0:02:25.6]} 14... Qxd6 {[%clk 0:00:50.2]} 15. Qh5+
{[%clk 0:02:25.8]} 15... Kd8 {[%clk 0:00:45.5]} 16. Nf7+ {[%clk 0:02:25.6]} 1-0

[Event "*** SCC Grand Prix: Titled Tuesday Blitz"]
[Site "Chess.com"]
[Date "2020.08.04"]
[Round "2"]
[White "cukin84"]
[Black "eightbyeightchess"]
[Result "0-1"]
[WhiteElo "2174"]
[BlackElo "2422"]
[TimeControl "180+1"]
[EndTime "13:59:25 PDT"]
[Termination "eightbyeightchess won by resignation"]

1. e4 {[%clk 0:03:00.9]} 1... e6 {[%clk 0:03:00.4]} 2. d4 {[%clk 0:02:59.3]}
2... d5 {[%clk 0:02:58.7]} 3. Nc3 {[%clk 0:02:58.3]} 3... Nf6 {[%clk 0:02:58.9]}
4. e5 {[%clk 0:02:58.1]} 4... Nfd7 {[%clk 0:02:59.3]} 5. f4 {[%clk 0:02:58.3]}
5... c5 {[%clk 0:03:00]} 6. Nf3 {[%clk 0:02:58.4]} 6... Nc6 {[%clk 0:03:00.7]}
7. Be3 {[%clk 0:02:58.2]} 7... cxd4 {[%clk 0:03:01.5]} 8. Nxd4 {[%clk
0:02:57.9]} 8... Bc5 {[%clk 0:03:02.2]} 9. Qd2 {[%clk 0:02:57.5]} 9... a6 {[%clk
0:03:02.9]} 10. O-O-O {[%clk 0:02:54.4]} 10... O-O {[%clk 0:03:03.3]} 11. h4
{[%clk 0:02:48.5]} 11... Bxd4 {[%clk 0:03:03.2]} 12. Bxd4 {[%clk 0:02:48.3]}
12... b5 {[%clk 0:03:04.1]} 13. g4 {[%clk 0:02:41.4]} 13... b4 {[%clk
0:03:04.2]} 14. Ne2 {[%clk 0:02:40]} 14... Qa5 {[%clk 0:03:03.6]} 15. Kb1 {[%clk
0:02:38.3]} 15... Nxd4 {[%clk 0:03:04]} 16. Nxd4 {[%clk 0:02:37.5]} 16... Bb7
{[%clk 0:03:03.6]} 17. Qe3 {[%clk 0:02:32]} 17... Qc7 {[%clk 0:03:03.2]} 18. Bd3
{[%clk 0:02:29.7]} 18... a5 {[%clk 0:03:02.6]} 19. Nb5 {[%clk 0:02:27.5]} 19...
Qc5 {[%clk 0:02:58]} 20. Qxc5 {[%clk 0:02:25.3]} 20... Nxc5 {[%clk 0:02:58.9]}
21. Nd6 {[%clk 0:02:25.2]} 21... Bc6 {[%clk 0:02:59.3]} 22. f5 {[%clk
0:02:17.4]} 22... a4 {[%clk 0:02:57.6]} 23. g5 {[%clk 0:02:15.2]} 23... b3
{[%clk 0:02:55.2]} 24. a3 {[%clk 0:02:12.9]} 24... Nxd3 {[%clk 0:02:42.5]} 25.
cxd3 {[%clk 0:02:08]} 25... d4 {[%clk 0:02:40.2]} 26. Rhf1 {[%clk 0:02:07.3]}
26... Bg2 {[%clk 0:02:28.5]} 27. Rf2 {[%clk 0:02:06.3]} 27... Bh3 {[%clk
0:02:28.3]} 28. h5 {[%clk 0:02:03.7]} 28... exf5 {[%clk 0:02:22.8]} 29. Rf4
{[%clk 0:01:57.2]} 29... Bg4 {[%clk 0:02:15.5]} 30. Rh1 {[%clk 0:01:55.7]} 30...
Rfe8 {[%clk 0:02:15.4]} 31. Rxd4 {[%clk 0:01:37.8]} 31... Rxe5 {[%clk
0:02:13.4]} 32. Nc4 {[%clk 0:01:29.3]} 32... Re2 {[%clk 0:02:08.6]} 33. Ne3
{[%clk 0:01:24.7]} 33... Rxe3 {[%clk 0:02:04.7]} 0-1

[Event "*** SCC Grand Prix: Titled Tuesday Blitz"]
[Site "Chess.com"]
[Date "2020.08.04"]
[Round "2"]
[White "Vladislav_Chizhikov"]
[Black "ajdemipopushi"]
[Result "1-0"]
[WhiteElo "2463"]
[BlackElo "2254"]
[TimeControl "180+1"]
[EndTime "13:59:40 PDT"]
[Termination "Vladislav_Chizhikov won by resignation"]

1. e4 {[%clk 0:03:00.9]} 1... c5 {[%clk 0:02:59.6]} 2. Nf3 {[%clk 0:03:00.4]}
2... g6 {[%clk 0:02:59.8]} 3. d4 {[%clk 0:02:59.5]} 3... cxd4 {[%clk 0:03:00.1]}
4. c3 {[%clk 0:03:00]} 4... dxc3 {[%clk 0:02:59.5]} 5. Nxc3 {[%clk 0:03:00.9]}
5... Nc6 {[%clk 0:02:59.5]} 6. e5 {[%clk 0:02:59.6]} 6... Bg7 {[%clk 0:02:58.1]}
7. Bc4 {[%clk 0:02:58]} 7... Nh6 {[%clk 0:02:57.8]} 8. Bf4 {[%clk 0:02:54.4]}
8... O-O {[%clk 0:02:46.5]} 9. O-O {[%clk 0:02:54.8]} 9... a6 {[%clk 0:01:55.5]}
10. Qd2 {[%clk 0:02:53.8]} 10... Ng4 {[%clk 0:01:54.7]} 11. Rfe1 {[%clk
0:02:49.9]} 11... d6 {[%clk 0:01:48.7]} 12. exd6 {[%clk 0:02:46.6]} 12... exd6
{[%clk 0:01:48.7]} 13. Bxd6 {[%clk 0:02:42.5]} 13... Re8 {[%clk 0:01:44]} 14.
Rxe8+ {[%clk 0:02:18.8]} 14... Qxe8 {[%clk 0:01:43.7]} 15. Nd5 {[%clk
0:02:19.1]} 15... Qe4 {[%clk 0:00:56.4]} 16. Nb6 {[%clk 0:02:10.8]} 16... Ra7
{[%clk 0:00:51.4]} 17. Re1 {[%clk 0:02:08.4]} 1-0

[Event "*** SCC Grand Prix: Titled Tuesday Blitz"]
[Site "Chess.com"]
[Date "2020.08.04"]
[Round "2"]
[White "Yoshikrov"]
[Black "mishanick"]
[Result "0-1"]
[WhiteElo "2146"]
[BlackElo "2931"]
[TimeControl "180+1"]
[EndTime "13:59:55 PDT"]
[Termination "mishanick won by resignation"]

1. e4 {[%clk 0:03:00.9]} 1... c5 {[%clk 0:02:59.9]} 2. Nf3 {[%clk 0:02:59.4]}
2... d6 {[%clk 0:03:00.4]} 3. d4 {[%clk 0:02:58.6]} 3... cxd4 {[%clk 0:03:01.3]}
4. Nxd4 {[%clk 0:02:57.6]} 4... Nf6 {[%clk 0:03:01.8]} 5. Nc3 {[%clk 0:02:58.1]}
5... a6 {[%clk 0:03:02.2]} 6. Be3 {[%clk 0:02:58.2]} 6... e5 {[%clk 0:03:02.3]}
7. Nb3 {[%clk 0:02:58]} 7... Be6 {[%clk 0:03:02.8]} 8. f3 {[%clk 0:02:58.5]}
8... Nbd7 {[%clk 0:03:03.3]} 9. Qd2 {[%clk 0:02:59]} 9... b5 {[%clk 0:03:03.9]}
10. O-O-O {[%clk 0:02:58.8]} 10... Be7 {[%clk 0:03:01]} 11. Kb1 {[%clk
0:02:58.2]} 11... b4 {[%clk 0:02:58.3]} 12. Nd5 {[%clk 0:02:57.8]} 12... Bxd5
{[%clk 0:02:56.6]} 13. exd5 {[%clk 0:02:58.7]} 13... Nb6 {[%clk 0:02:55.4]} 14.
Bxb6 {[%clk 0:02:58.5]} 14... Qxb6 {[%clk 0:02:54.7]} 15. g4 {[%clk 0:02:59.1]}
15... a5 {[%clk 0:02:55.2]} 16. g5 {[%clk 0:02:49.4]} 16... Nh5 {[%clk
0:02:54.6]} 17. Nc1 {[%clk 0:02:05.2]} 17... O-O {[%clk 0:02:47.2]} 18. h4
{[%clk 0:02:03.9]} 18... a4 {[%clk 0:02:46.7]} 19. Bd3 {[%clk 0:01:55.9]} 19...
a3 {[%clk 0:02:44.6]} 20. b3 {[%clk 0:01:54.4]} 20... Rfc8 {[%clk 0:02:43]} 21.
Rhe1 {[%clk 0:01:45.3]} 21... g6 {[%clk 0:02:40.4]} 22. Qe3 {[%clk 0:01:43.3]}
22... Bd8 {[%clk 0:02:38.9]} 23. Qxb6 {[%clk 0:01:42.7]} 23... Bxb6 {[%clk
0:02:39.8]} 24. Ne2 {[%clk 0:01:35.5]} 24... Bf2 {[%clk 0:02:36.7]} 25. Rf1
{[%clk 0:01:35.6]} 25... Bxh4 {[%clk 0:02:36.5]} 26. f4 {[%clk 0:01:36.1]} 26...
Re8 {[%clk 0:02:32.4]} 27. fxe5 {[%clk 0:01:34.4]} 27... Rxe5 {[%clk 0:02:33.3]}
28. Nf4 {[%clk 0:01:30.6]} 28... Nxf4 {[%clk 0:02:20.3]} 29. Rxf4 {[%clk
0:01:30.2]} 29... Be1 {[%clk 0:02:20.9]} 30. Re4 {[%clk 0:01:14.8]} 30... Rxe4
{[%clk 0:02:18.9]} 31. Bxe4 {[%clk 0:01:15.7]} 31... Bc3 {[%clk 0:02:19.5]} 32.
Rf1 {[%clk 0:01:12.2]} 32... Re8 {[%clk 0:02:17.7]} 33. Bd3 {[%clk 0:01:12]}
33... Re5 {[%clk 0:02:18.1]} 34. Bc4 {[%clk 0:01:12]} 34... Rxg5 {[%clk
0:02:16.8]} 35. Kc1 {[%clk 0:01:12.5]} 35... h5 {[%clk 0:02:17]} 36. Kd1 {[%clk
0:01:12.8]} 36... Re5 {[%clk 0:02:17.7]} 0-1

[Event "*** SCC Grand Prix: Titled Tuesday Blitz"]
[Site "Chess.com"]
[Date "2020.08.04"]
[Round "2"]
[White "Mikhail_Golubev"]
[Black "Chuchofrio1"]
[Result "1-0"]
[WhiteElo "2600"]
[BlackElo "2333"]
[TimeControl "180+1"]
[EndTime "14:00:15 PDT"]
[Termination "Mikhail_Golubev won by checkmate"]

1. e4 {[%clk 0:03:00.9]} 1... e5 {[%clk 0:02:59.6]} 2. Nf3 {[%clk 0:03:00.3]}
2... Nc6 {[%clk 0:03:00]} 3. Nc3 {[%clk 0:03:00.4]} 3... Nf6 {[%clk 0:03:00.2]}
4. g3 {[%clk 0:03:00.3]} 4... d5 {[%clk 0:02:58.9]} 5. exd5 {[%clk 0:02:58.9]}
5... Nxd5 {[%clk 0:02:59.8]} 6. Bg2 {[%clk 0:02:59.4]} 6... Bg4 {[%clk
0:02:59.2]} 7. h3 {[%clk 0:02:55.3]} 7... Nxc3 {[%clk 0:02:56]} 8. bxc3 {[%clk
0:02:52.5]} 8... Bh5 {[%clk 0:02:54.1]} 9. Qe2 {[%clk 0:02:28.3]} 9... Bd6
{[%clk 0:02:52.8]} 10. Rb1 {[%clk 0:02:26.8]} 10... Rb8 {[%clk 0:02:51.8]} 11.
g4 {[%clk 0:01:41.2]} 11... Bg6 {[%clk 0:02:51.3]} 12. d3 {[%clk 0:01:23]} 12...
O-O {[%clk 0:02:50]} 13. Ng5 {[%clk 0:01:21.7]} 13... Qd7 {[%clk 0:02:42.1]} 14.
O-O {[%clk 0:01:18.3]} 14... f5 {[%clk 0:02:38.8]} 15. Bd5+ {[%clk 0:01:15.9]}
15... Kh8 {[%clk 0:02:38.3]} 16. Be6 {[%clk 0:01:08.6]} 16... Qe7 {[%clk
0:02:36.3]} 17. gxf5 {[%clk 0:01:06.6]} 17... Bxf5 {[%clk 0:02:28.6]} 18. Bxf5
{[%clk 0:00:56.2]} 18... Rxf5 {[%clk 0:02:29.5]} 19. Qg4 {[%clk 0:00:56.3]}
19... Rbf8 {[%clk 0:02:26.3]} 20. Rxb7 {[%clk 0:00:52.4]} 20... Bc5 {[%clk
0:02:21.9]} 21. Ne4 {[%clk 0:00:45.4]} 21... Bb6 {[%clk 0:02:20.5]} 22. c4
{[%clk 0:00:37.9]} 22... Na5 {[%clk 0:02:19.2]} 23. Rb8 {[%clk 0:00:29.4]} 23...
Rxb8 {[%clk 0:02:03.9]} 24. Qxf5 {[%clk 0:00:29.4]} 24... Nc6 {[%clk 0:02:02.8]}
25. Ng5 {[%clk 0:00:23.1]} 25... Rf8 {[%clk 0:02:01.1]} 26. Qxh7# {[%clk
0:00:22.4]} 1-0

[Event "*** SCC Grand Prix: Titled Tuesday Blitz"]
[Site "Chess.com"]
[Date "2020.08.04"]
[Round "2"]
[White "AnonymousBread"]
[Black "diablanni"]
[Result "1-0"]
[WhiteElo "2530"]
[BlackElo "2307"]
[TimeControl "180+1"]
[EndTime "14:00:15 PDT"]
[Termination "AnonymousBread won by resignation"]

1. d4 {[%clk 0:03:00.9]} 1... Nf6 {[%clk 0:02:59.2]} 2. Nc3 {[%clk 0:03:01.4]}
2... d5 {[%clk 0:02:56.5]} 3. Bf4 {[%clk 0:03:01.2]} 3... c5 {[%clk 0:02:51.4]}
4. e3 {[%clk 0:03:00.9]} 4... cxd4 {[%clk 0:02:18]} 5. exd4 {[%clk 0:03:00.7]}
5... a6 {[%clk 0:02:13.3]} 6. Nf3 {[%clk 0:02:59.7]} 6... Bg4 {[%clk 0:02:09.1]}
7. Be2 {[%clk 0:02:58.9]} 7... Bxf3 {[%clk 0:01:58]} 8. Bxf3 {[%clk 0:02:59.8]}
8... e6 {[%clk 0:01:58.4]} 9. O-O {[%clk 0:02:58.4]} 9... Nc6 {[%clk 0:01:58.7]}
10. Ne2 {[%clk 0:02:58]} 10... Bd6 {[%clk 0:01:57]} 11. c3 {[%clk 0:02:55.8]}
11... Bxf4 {[%clk 0:01:56.4]} 12. Nxf4 {[%clk 0:02:56.7]} 12... O-O {[%clk
0:01:51.3]} 13. Nd3 {[%clk 0:02:55.3]} 13... Na5 {[%clk 0:01:41.4]} 14. Rc1
{[%clk 0:02:48.1]} 14... Qd6 {[%clk 0:01:37.4]} 15. b3 {[%clk 0:02:44.5]} 15...
b5 {[%clk 0:01:34.6]} 16. Nc5 {[%clk 0:02:39.4]} 16... Nd7 {[%clk 0:01:30.8]}
17. b4 {[%clk 0:02:39]} 17... Nc4 {[%clk 0:01:29]} 18. Be2 {[%clk 0:02:39.5]}
18... Ndb6 {[%clk 0:01:28]} 19. a4 {[%clk 0:02:36.5]} 19... bxa4 {[%clk
0:01:24.2]} 20. Nxa4 {[%clk 0:02:35.2]} 20... a5 {[%clk 0:01:19]} 21. bxa5
{[%clk 0:02:27.9]} 21... Rxa5 {[%clk 0:01:17.2]} 22. Nc5 {[%clk 0:02:28.3]}
22... Qc7 {[%clk 0:01:03.4]} 23. Rb1 {[%clk 0:02:27]} 23... Rfa8 {[%clk
0:01:02.8]} 24. Re1 {[%clk 0:02:15.8]} 24... Ra2 {[%clk 0:01:01.3]} 25. Qb3
{[%clk 0:02:11.5]} 25... h6 {[%clk 0:00:38.8]} 26. h3 {[%clk 0:02:02.9]} 26...
R8a3 {[%clk 0:00:28.4]} 27. Qb5 {[%clk 0:02:02.7]} 27... Rc2 {[%clk 0:00:27.9]}
28. Qe8+ {[%clk 0:02:01.9]} 28... Kh7 {[%clk 0:00:27.1]} 29. Bd3+ {[%clk
0:02:02.5]} 1-0

[Event "*** SCC Grand Prix: Titled Tuesday Blitz"]
[Site "Chess.com"]
[Date "2020.08.04"]
[Round "2"]
[White "PSvidler"]
[Black "louis198"]
[Result "1-0"]
[WhiteElo "2941"]
[BlackElo "2528"]
[TimeControl "180+1"]
[EndTime "14:00:30 PDT"]
[Termination "PSvidler won by resignation"]

1. e4 {[%clk 0:02:48]} 1... e6 {[%clk 0:02:59.3]} 2. d4 {[%clk 0:02:44.3]} 2...
d5 {[%clk 0:02:59.9]} 3. Nd2 {[%clk 0:02:43]} 3... Nf6 {[%clk 0:02:57.2]} 4. e5
{[%clk 0:02:43.1]} 4... Nfd7 {[%clk 0:02:57.5]} 5. c3 {[%clk 0:02:43.8]} 5... c5
{[%clk 0:02:58]} 6. Bd3 {[%clk 0:02:44.5]} 6... Nc6 {[%clk 0:02:58.6]} 7. Ne2
{[%clk 0:02:44.6]} 7... f6 {[%clk 0:02:58.9]} 8. Nf4 {[%clk 0:02:40.4]} 8... Qe7
{[%clk 0:02:58.8]} 9. exf6 {[%clk 0:02:34.9]} 9... Qxf6 {[%clk 0:02:43.3]} 10.
Nf3 {[%clk 0:02:34.7]} 10... Bd6 {[%clk 0:02:43.1]} 11. Nh5 {[%clk 0:02:34.2]}
11... Qe7 {[%clk 0:02:43.3]} 12. O-O {[%clk 0:02:33.4]} 12... O-O {[%clk
0:02:35]} 13. Re1 {[%clk 0:02:32]} 13... cxd4 {[%clk 0:01:47.9]} 14. cxd4 {[%clk
0:02:31.6]} 14... g6 {[%clk 0:01:41.4]} 15. Bg5 {[%clk 0:02:17]} 15... Qf7
{[%clk 0:01:35.3]} 16. Ng3 {[%clk 0:02:17]} 16... Re8 {[%clk 0:01:24.7]} 17. Bh6
{[%clk 0:02:09.8]} 17... Bf4 {[%clk 0:01:22.8]} 18. Ng5 {[%clk 0:01:58.1]} 18...
Qf6 {[%clk 0:01:18.5]} 19. Nxh7 {[%clk 0:01:57.3]} 19... Kxh7 {[%clk 0:01:02.5]}
20. Bxf4 {[%clk 0:01:57.2]} 20... Qxf4 {[%clk 0:01:02.5]} 21. Qh5+ {[%clk
0:01:56.9]} 21... Kg7 {[%clk 0:01:00.1]} 22. Qxg6+ {[%clk 0:01:56.8]} 22... Kf8
{[%clk 0:01:00.5]} 23. Nh5 {[%clk 0:01:55.6]} 23... Qf7 {[%clk 0:00:58.3]} 24.
Qh6+ {[%clk 0:01:55.6]} 24... Ke7 {[%clk 0:00:48.8]} 25. Bg6 {[%clk 0:01:55.3]}
25... Qf8 {[%clk 0:00:48]} 26. Qg5+ {[%clk 0:01:54.8]} 26... Kd6 {[%clk
0:00:41.5]} 27. Bxe8 {[%clk 0:01:54.8]} 27... Qxe8 {[%clk 0:00:41.9]} 28. Qg3+
{[%clk 0:01:54.1]} 28... Ke7 {[%clk 0:00:40.6]} 29. Rxe6+ {[%clk 0:01:48.5]}
29... Kxe6 {[%clk 0:00:39.4]} 30. Re1+ {[%clk 0:01:49.2]} 30... Nde5 {[%clk
0:00:39.6]} 31. Rxe5+ {[%clk 0:01:49.8]} 31... Nxe5 {[%clk 0:00:39.3]} 32. Qxe5+
{[%clk 0:01:50.5]} 32... Kd7 {[%clk 0:00:39.5]} 33. Nf6+ {[%clk 0:01:50.4]} 1-0

[Event "*** SCC Grand Prix: Titled Tuesday Blitz"]
[Site "Chess.com"]
[Date "2020.08.04"]
[Round "2"]
[White "AndrewDGreen"]
[Black "rududuyk"]
[Result "1-0"]
[WhiteElo "2396"]
[BlackElo "2077"]
[TimeControl "180+1"]
[EndTime "14:00:44 PDT"]
[Termination "AndrewDGreen won by resignation"]

1. d4 {[%clk 0:03:00.9]} 1... e6 {[%clk 0:03:00.1]} 2. Nf3 {[%clk 0:03:00.5]}
2... f5 {[%clk 0:03:00.3]} 3. c4 {[%clk 0:03:00.4]} 3... Nf6 {[%clk 0:03:00.6]}
4. Nc3 {[%clk 0:03:00.3]} 4... Be7 {[%clk 0:02:58.3]} 5. Qc2 {[%clk 0:02:54.7]}
5... b6 {[%clk 0:02:55.8]} 6. e4 {[%clk 0:02:48.7]} 6... fxe4 {[%clk 0:02:44.8]}
7. Nxe4 {[%clk 0:02:48.6]} 7... Bb7 {[%clk 0:02:44.6]} 8. Bd3 {[%clk 0:02:32.1]}
8... Bb4+ {[%clk 0:02:30.8]} 9. Bd2 {[%clk 0:02:24.7]} 9... Bxd2+ {[%clk
0:02:25.8]} 10. Nexd2 {[%clk 0:02:25.6]} 10... Nc6 {[%clk 0:02:19.3]} 11. a3
{[%clk 0:02:18.1]} 11... O-O {[%clk 0:02:17.5]} 12. O-O-O {[%clk 0:02:07]} 12...
a6 {[%clk 0:01:54.5]} 13. Ne4 {[%clk 0:02:04.3]} 13... h6 {[%clk 0:01:32]} 14.
Rhg1 {[%clk 0:01:57.2]} 14... Na5 {[%clk 0:01:17.7]} 15. Nxf6+ {[%clk
0:01:29.8]} 15... Qxf6 {[%clk 0:01:17.1]} 16. Kb1 {[%clk 0:01:27.2]} 16... c5
{[%clk 0:01:09.4]} 17. dxc5 {[%clk 0:01:23.2]} 17... bxc5 {[%clk 0:01:05.9]} 18.
Rge1 {[%clk 0:01:14]} 18... Bc6 {[%clk 0:01:01.2]} 19. Ne5 {[%clk 0:01:11.6]}
19... Qxf2 {[%clk 0:00:55.1]} 20. Bh7+ {[%clk 0:01:08.5]} 20... Kh8 {[%clk
0:00:52.1]} 21. Ng6+ {[%clk 0:01:07]} 21... Kxh7 {[%clk 0:00:52.1]} 22. Nxf8+
{[%clk 0:01:06.6]} 1-0

[Event "*** SCC Grand Prix: Titled Tuesday Blitz"]
[Site "Chess.com"]
[Date "2020.08.04"]
[Round "2"]
[White "praveenb2002"]
[Black "Chesswizard_2007"]
[Result "1-0"]
[WhiteElo "2782"]
[BlackElo "2506"]
[TimeControl "180+1"]
[EndTime "14:00:47 PDT"]
[Termination "praveenb2002 won by resignation"]

1. d4 {[%clk 0:03:00.9]} 1... Nf6 {[%clk 0:02:59.3]} 2. c4 {[%clk 0:02:58.1]}
2... g6 {[%clk 0:02:59.3]} 3. Nc3 {[%clk 0:02:57.2]} 3... Bg7 {[%clk 0:02:59]}
4. e4 {[%clk 0:02:57.2]} 4... d6 {[%clk 0:02:56.1]} 5. h3 {[%clk 0:02:57.4]}
5... O-O {[%clk 0:02:55.1]} 6. Be3 {[%clk 0:02:56.1]} 6... c5 {[%clk 0:02:51.4]}
7. dxc5 {[%clk 0:02:53.1]} 7... Qa5 {[%clk 0:02:46.5]} 8. Bd3 {[%clk 0:02:50.4]}
8... dxc5 {[%clk 0:02:41.8]} 9. e5 {[%clk 0:02:50.9]} 9... Nfd7 {[%clk
0:02:37.6]} 10. f4 {[%clk 0:02:51.4]} 10... Nc6 {[%clk 0:02:37.3]} 11. Ne2
{[%clk 0:02:43.6]} 11... Nb6 {[%clk 0:02:32.8]} 12. b3 {[%clk 0:02:42.2]} 12...
Be6 {[%clk 0:02:26.3]} 13. O-O {[%clk 0:02:41.6]} 13... Rad8 {[%clk 0:02:25]}
14. Ne4 {[%clk 0:02:33.2]} 14... Nb4 {[%clk 0:02:20.5]} 15. Nxc5 {[%clk
0:02:31.8]} 15... Bf5 {[%clk 0:02:13.6]} 16. Nxb7 {[%clk 0:02:24.5]} 16... Qa6
{[%clk 0:01:47.8]} 17. Nxd8 {[%clk 0:02:20.1]} 17... Rxd8 {[%clk 0:01:48.7]} 18.
Bxf5 {[%clk 0:02:14.8]} 18... Rxd1 {[%clk 0:01:46.6]} 19. Raxd1 {[%clk
0:02:11.1]} 19... gxf5 {[%clk 0:01:42.1]} 20. Rd8+ {[%clk 0:02:10.8]} 20... Bf8
{[%clk 0:01:41.9]} 21. Rf3 {[%clk 0:02:10.8]} 21... h5 {[%clk 0:00:50.5]} 22.
Rg3+ {[%clk 0:02:09.6]} 22... Kh7 {[%clk 0:00:50.7]} 23. Rxf8 {[%clk 0:02:09.7]}
23... Qxa2 {[%clk 0:00:51.2]} 24. Rxf7+ {[%clk 0:02:09.3]} 24... Kh8 {[%clk
0:00:48.7]} 25. Nd4 {[%clk 0:01:55.6]} 25... Qb1+ {[%clk 0:00:37.5]} 26. Kh2
{[%clk 0:01:54.4]} 26... Nd7 {[%clk 0:00:24.9]} 27. Rxf5 {[%clk 0:01:46.3]}
27... Qd1 {[%clk 0:00:19.3]} 28. Nf3 {[%clk 0:01:45.9]} 28... Nf6 {[%clk
0:00:13.2]} 29. exf6 {[%clk 0:01:45.7]} 29... Qxf3 {[%clk 0:00:12.7]} 1-0

[Event "*** SCC Grand Prix: Titled Tuesday Blitz"]
[Site "Chess.com"]
[Date "2020.08.04"]
[Round "2"]
[White "Patov"]
[Black "GameOverBro"]
[Result "1-0"]
[WhiteElo "2298"]
[BlackElo "2454"]
[TimeControl "180+1"]
[EndTime "14:00:47 PDT"]
[Termination "Patov won by resignation"]

1. e4 {[%clk 0:03:00.9]} 1... d6 {[%clk 0:03:00.9]} 2. d4 {[%clk 0:03:00.5]}
2... Nf6 {[%clk 0:03:01.6]} 3. f4 {[%clk 0:03:00.8]} 3... Nxe4 {[%clk
0:03:00.8]} 4. Bd3 {[%clk 0:02:39.5]} 4... Nf6 {[%clk 0:02:56.9]} 5. Nf3 {[%clk
0:02:37.5]} 5... g6 {[%clk 0:02:56.5]} 6. O-O {[%clk 0:02:36.8]} 6... Bg7 {[%clk
0:02:57.1]} 7. c4 {[%clk 0:02:34.3]} 7... e6 {[%clk 0:02:54.7]} 8. Nc3 {[%clk
0:02:34.7]} 8... b6 {[%clk 0:02:53.1]} 9. d5 {[%clk 0:02:32.6]} 9... O-O {[%clk
0:02:51.6]} 10. dxe6 {[%clk 0:02:30.7]} 10... Bxe6 {[%clk 0:02:51.3]} 11. f5
{[%clk 0:02:26.7]} 11... Bd7 {[%clk 0:02:43]} 12. Bg5 {[%clk 0:02:20.6]} 12...
Bc6 {[%clk 0:02:36.7]} 13. Qe1 {[%clk 0:02:15.3]} 13... Nbd7 {[%clk 0:02:32.1]}
14. fxg6 {[%clk 0:02:08.7]} 14... fxg6 {[%clk 0:02:30.4]} 15. Nd4 {[%clk
0:02:07.3]} 15... Ne5 {[%clk 0:02:27.4]} 16. Nxc6 {[%clk 0:02:05.1]} 16... Nxc6
{[%clk 0:02:21]} 17. Nd5 {[%clk 0:02:05.3]} 17... Ne5 {[%clk 0:02:11.1]} 18. Qh4
{[%clk 0:02:02.9]} 18... Ned7 {[%clk 0:01:54.7]} 19. Rae1 {[%clk 0:01:58.4]}
19... c6 {[%clk 0:00:47.9]} 20. Ne7+ {[%clk 0:01:55.4]} 20... Kf7 {[%clk
0:00:47.4]} 21. Qxh7 {[%clk 0:01:52]} 21... Ne5 {[%clk 0:00:41.1]} 22. Rxe5
{[%clk 0:01:46.4]} 22... dxe5 {[%clk 0:00:40.8]} 23. Rxf6+ {[%clk 0:01:44.3]}
23... Ke8 {[%clk 0:00:33.5]} 24. Bxg6+ {[%clk 0:01:40.3]} 24... Kd7 {[%clk
0:00:31.2]} 25. Qxg7 {[%clk 0:01:40.8]} 25... Qxe7 {[%clk 0:00:28.9]} 26. Bf5+
{[%clk 0:01:38.3]} 26... Ke8 {[%clk 0:00:22.4]} 27. Rxf8+ {[%clk 0:01:36.2]} 1-0